bitfinex/quotes_ETHUSD_20230113
["timestamp","ask_amount","ask_price","bid_price","bid_amount"]
[1673569995608,0.45960176,1410.4,1410.0,9.65786]
[1673569995843,0.45960176,1410.4,1410.0,9.59186]
[1673569996161,14.15110176,1410.4,1410.0,9.59186]
[1673569996382,14.24668813,1410.4,1410.0,9.59186]
[1673569996551,13.71488813,1410.4,1410.0,12.392988]
[1673569997282,13.71488813,1410.4,1410.0,23.09151072]
[1673569999118,0.55518813,1410.4,1410.2,7.09119]
[1673569999286,0.45960176,1410.4,1410.3,3.209119]
[1673569999497,0.45960176,1410.4,1410.3,17.390479]
[1673569999843,0.45960176,1410.4,1410.3,20.99681172]
[1673570000061,0.45960176,1410.4,1410.3,23.99881172]
[1673570000215,0.45960176,1410.4,1410.3,23.99681172]
[1673570001111,13.52878269,1410.9,1410.4,2.5]
[1673570001316,13.52878269,1410.9,1410.6,21.2673]
[1673570001481,13.52878269,1410.9,1410.6,17.40862126]
[1673570001687,13.52878269,1410.9,1410.5,7.1556]
[1673570001931,4.13803272,1410.8,1410.4,0.066]
[1673570002266,19.66767099,1410.8,1410.1,16.68881]
[1673570002478,2.5,1410.7,1410.2,2.5]
[1673570002790,7.08872,1410.7,1410.2,16.68222]
[1673570003103,2.85295096,1410.7,1410.2,23.28314399]
[1673570003264,9.06836464,1410.8,1410.2,23.28314399]
[1673570003473,11.56836464,1410.8,1410.2,23.28314399]
[1673570003940,9.06836464,1410.8,1410.3,3.60633272]
[1673570004256,1.98016464,1410.8,1410.4,9.59013]
[1673570004462,1.88457827,1410.8,1410.4,9.59013]
[1673570004676,1.88457827,1410.8,1410.4,7.09013]
[1673570004894,0.18845783,1410.7,1410.4,14.18031]
[1673570005257,0.18845783,1410.7,1410.3,7.15648]
[1673570005509,0.18845783,1410.7,1410.2,12.65138127]
[1673570005719,7.27730783,1410.7,1410.2,19.67621127]
[1673570005900,0.5318,1410.6,1410.2,19.67621127]
[1673570006097,0.5318,1410.6,1410.2,17.17621127]
[1673570006478,11.16165942,1410.6,1410.1,10.15736]
[1673570006655,8.75724579,1410.6,1410.2,3.0]
[1673570006862,1.66785579,1410.6,1410.2,17.18191]
[1673570007064,1.57226942,1410.6,1410.2,17.18191]
[1673570007599,1.57226942,1410.6,1410.2,10.09078]
[1673570008416,1.57226942,1410.6,1410.2,12.724763]
[1673570008627,1.57226942,1410.6,1410.2,19.815953]
[1673570009717,1.57226942,1410.6,1410.2,3.0]
[1673570009718,8.12966942,1410.6,1410.2,3.0]
[1673570009881,17.81445579,1410.6,1410.2,3.0]
[1673570010562,15.31445579,1410.6,1410.2,3.0]
[1673570012193,8.22525579,1410.6,1410.2,10.09116]
[1673570012510,1.13605579,1410.6,1410.2,17.18235]
[1673570012720,7.9045942,1410.7,1410.2,24.27354]
[1673570013189,0.8157442,1410.7,1410.2,24.27354]
[1673570013395,0.72015783,1410.7,1410.3,2.5]
[1673570013709,0.72015783,1410.7,1410.3,16.68097]
[1673570014141,0.72015783,1410.7,1410.4,3.0]
[1673570014142,0.18845783,1410.7,1410.4,3.0]
[1673570014302,0.18845783,1410.7,1410.4,10.09011]
[1673570014514,1.88457827,1410.8,1410.4,10.09011]
[1673570015136,1.88457827,1410.8,1410.5,2.5]
[1673570015346,1.35287827,1410.8,1410.5,16.6827454]
[1673570016322,1.04993691,1410.8,1410.5,16.6827454]
[1673570017084,1.05293691,1410.8,1410.5,16.6827454]
[1673570017255,17.21680158,1410.9,1410.5,23.7724254]
[1673570017446,13.52878269,1410.9,1410.5,23.7724254]
[1673570017656,13.52878269,1410.9,1410.6,3.0]
[1673570017909,13.52878269,1410.9,1410.7,14.17734]
[1673570018084,0.13028269,1410.9,1410.7,14.17734]
[1673570018285,0.03469632,1410.9,1410.7,14.17734]
[1673570018712,0.03469632,1410.9,1410.8,7.08817]
[1673570018940,0.03469632,1410.9,1410.8,14.17634]
[1673570019600,0.03469632,1410.9,1410.8,21.26451]
[1673570020025,1.33069632,1410.9,1410.7,7.15441]
[1673570020185,1.57128516,1410.9,1410.7,7.08841]
[1673570020401,0.27528516,1410.9,1410.7,7.08841]
[1673570020643,0.27528516,1410.9,1410.7,14.17708]
[1673570020853,0.03469632,1410.9,1410.7,21.26575]
[1673570021129,0.03469632,1410.9,1410.8,2.5]
[1673570021574,0.03469632,1410.9,1410.8,21.8887354]
[1673570023391,0.03469632,1410.9,1410.8,25.1540647]
[1673570024836,0.03469632,1410.9,1410.8,21.26451]
[1673570026851,1.33069632,1410.9,1410.7,14.24292]
[1673570027093,0.03469632,1410.9,1410.8,7.08817]
[1673570028145,0.03469632,1410.9,1410.8,14.17634]
[1673570032696,0.03469632,1410.9,1410.8,16.67634]
[1673570033751,0.03469632,1410.9,1410.8,14.17634]
[1673570038981,0.03469632,1410.9,1410.8,16.67634]
[1673570041174,0.03469632,1410.9,1410.8,20.018247]
[1673570041478,0.03469632,1410.9,1410.8,27.106417]
[1673570045892,0.03160837,1410.9,1410.8,27.106417]
[1673570046115,0.03160837,1410.9,1410.8,33.71274972]
[1673570046315,0.03160837,1410.9,1410.8,36.33516698]
[1673570046522,0.03160837,1410.9,1410.8,34.76090601]
[1673570046989,0.03160837,1410.9,1410.8,34.92026701]
[1673570047374,0.03160837,1410.9,1410.8,36.49452798]
[1673570048010,8.37e-06,1410.9,1410.8,34.92026701]
[1673570049253,8.37e-06,1410.9,1410.8,36.49452798]
[1673570049578,8.37e-06,1410.9,1410.8,42.16527395]
[1673570049936,0.03469632,1411.2,1410.9,2.5]
[1673570050254,0.03469632,1411.2,1411.1,23.35998]
[1673570050457,0.03469632,1411.2,1411.1,31.02502569]
[1673570050622,0.03469632,1411.2,1411.1,35.79245773]
[1673570050829,0.03469632,1411.2,1411.1,30.12567372]
[1673570051069,0.03469632,1411.2,1411.1,37.32695333]
[1673570051277,0.03469632,1411.2,1411.1,38.3856663]
[1673570051701,0.03469632,1411.2,1411.1,37.32695333]
[1673570052084,0.03469632,1411.2,1411.1,38.42895333]
[1673570052506,0.03469632,1411.2,1411.1,22.86098]
[1673570052767,0.03469632,1411.2,1411.0,8.21188297]
[1673570052768,1.33069632,1411.2,1411.0,8.21188297]
[1673570052978,1.33069632,1411.2,1410.9,0.066]
[1673570053154,4.13793272,1411.1,1410.7,1.12471297]
[1673570053397,0.23,1411.0,1410.6,2.64678243]
[1673570053573,0.23,1411.0,1410.6,2.25000234]
[1673570053784,0.5316,1411.1,1410.7,2.5]
[1673570054001,0.5316,1411.1,1410.7,9.58836]
[1673570054498,0.03469632,1411.2,1410.8,3.60633272]
[1673570054820,0.03469632,1411.2,1411.0,2.5]
[1673570055078,0.03469632,1411.2,1411.1,8.67366]
[1673570055393,0.03469632,1411.2,1411.1,15.76032]
[1673570056860,0.03469632,1411.2,1411.1,32.11267372]
[1673570057237,0.03469632,1411.2,1411.1,29.11267372]
[1673570057444,0.03469632,1411.2,1411.1,36.09508539]
[1673570057691,0.03469632,1411.2,1411.1,36.09708539]
[1673570057898,0.03469632,1411.2,1411.1,36.09508539]
[1673570058928,0.03469632,1411.2,1411.1,37.68708539]
[1673570061035,0.03469632,1411.2,1411.1,37.52772439]
[1673570063398,0.03469632,1411.2,1411.1,37.53071462]
[1673570064124,1e-07,1411.4,1411.2,12.47197514]
[1673570064293,0.03469632,1411.6,1411.4,28.34064]
[1673570064486,0.03469632,1411.6,1411.4,31.94697272]
[1673570064696,0.03469632,1411.6,1411.5,3.0]
[1673570064953,0.03469632,1411.6,1411.5,22.37916632]
[1673570065166,0.03469632,1411.6,1411.5,21.25398]
[1673570066306,0.03469632,1411.6,1411.5,24.25398]
[1673570066933,1.33069632,1411.6,1411.5,7.08466]
[1673570067146,3.58969516,1411.6,1411.4,0.066]
[1673570067356,0.5314,1411.5,1411.2,14.17171]
[1673570067744,3.0314,1411.5,1411.2,6.965994]
[1673570071372,6.38994164,1411.3,1411.0,14.17424]
[1673570071574,6.48552801,1411.3,1411.0,14.17424]
[1673570071792,1.587,1411.2,1411.0,14.17424]
[1673570072292,5.58152801,1411.3,1411.0,14.17424]
[1673570072514,5.58152801,1411.3,1411.0,21.26141]
[1673570073051,3.98552801,1411.3,1411.0,21.26141]
[1673570073206,0.54308637,1411.3,1411.0,21.26141]
[1673570073417,0.5315,1411.3,1411.0,21.26141]
[1673570075110,26.41996328,1411.4,1411.0,21.26141]
[1673570075880,26.41996328,1411.4,1411.0,24.86774272]
[1673570076061,25.37002637,1411.4,1411.0,24.86774272]
[1673570077232,25.37002637,1411.4,1411.0,28.31983799]
[1673570077830,26.41996328,1411.4,1411.0,28.31983799]
[1673570078090,26.41996328,1411.4,1411.0,24.86774272]
[1673570078091,25.37002637,1411.4,1411.0,24.86774272]
[1673570079093,26.41996328,1411.4,1411.0,24.86774272]
[1673570080144,7.08616,1411.2,1410.9,0.066]
[1673570080357,1.04993691,1411.0,1410.6,0.066]
[1673570080613,3.184,1410.7,1410.4,0.066]
[1673570080824,0.5484,1410.6,1410.3,0.17059958]
[1673570081034,1.601,1410.4,1410.3,1.23042709]
[1673570081403,1.601,1410.4,1410.3,0.17059958]
[1673570084799,1.601,1410.4,1410.3,7.26127958]
[1673570086767,1.601,1410.4,1410.3,14.35195958]
[1673570087077,1.601,1410.4,1410.3,21.44263958]
[1673570088496,1.601,1410.4,1410.3,14.35195958]
[1673570089426,6.96543272,1410.4,1410.3,0.17059958]
[1673570089702,12.41613209,1410.4,1410.3,0.17059958]
[1673570089846,26.59649209,1410.4,1410.2,0.17059958]
[1673570090054,20.14522572,1410.3,1410.2,0.17059958]
[1673570090314,23.79410616,1410.3,1410.2,0.17059958]
[1673570090633,26.29147316,1410.3,1410.2,0.17059958]
[1673570090941,30.88478616,1410.3,1410.2,0.17059958]
[1673570091311,2.5,1410.2,1410.0,0.18450485]
[1673570091526,14.11602272,1410.1,1410.0,0.18450485]
[1673570091735,19.61426836,1410.1,1410.0,0.18450485]
[1673570092389,49.81475836,1410.1,1410.0,4.85e-06]
[1673570092997,56.90644836,1410.1,1410.0,4.85e-06]
[1673570093420,76.85442995,1410.1,1410.0,4.85e-06]
[1673570093644,79.85442995,1410.1,1410.0,4.85e-06]
[1673570093840,88.84742995,1410.1,1410.0,4.85e-06]
[1673570094257,94.57780763,1410.1,1409.5,0.18087321]
[1673570094468,94.57780763,1410.1,1409.4,0.19154573]
[1673570094469,2.5,1409.5,1409.4,0.19154573]
[1673570094735,16.40304272,1409.5,1409.4,0.19154573]
[1673570094951,17.26082909,1409.5,1409.4,0.19154573]
[1673570095127,24.35553909,1409.5,1409.4,0.19154573]
[1673570095338,49.20421159,1409.5,1409.4,0.00054573]
[1673570095585,9.931,1409.4,1409.2,0.19154573]
[1673570095885,21.02777272,1409.3,1409.2,0.19154573]
[1673570096217,18.12335909,1409.3,1409.2,0.19154573]
[1673570096418,18.65555909,1409.3,1409.2,0.19154573]
[1673570096592,17.7383988,1409.3,1409.2,0.19154573]
[1673570096784,9.55450637,1409.3,1409.2,0.19154573]
[1673570096992,20.25655909,1409.3,1409.2,0.19154573]
[1673570098202,22.75655909,1409.3,1409.2,0.19154573]
[1673570099091,32.85227909,1409.3,1409.2,0.19154573]
[1673570099352,0.191,1409.2,1409.0,0.0681528]
[1673570099566,7.431,1408.9,1408.6,0.03]
[1673570099776,17.80279272,1408.8,1408.6,0.03]
[1673570099934,1.826,1408.7,1408.6,0.03]
[1673570100355,17.89837909,1408.8,1408.6,0.03]
[1673570100356,0.09558637,1408.8,1408.6,0.03]
[1673570100571,9.62433,1409.0,1408.6,0.03]
[1673570100926,18.99436572,1408.9,1408.6,0.03]
[1673570101087,19.08995209,1408.9,1408.6,0.03]
[1673570101296,11.99208209,1408.9,1408.6,0.03]
[1673570101508,11.02964909,1408.9,1408.6,0.03]
[1673570102416,18.12737909,1408.9,1408.6,0.03]
[1673570102627,11.02964909,1408.9,1408.6,0.03]
[1673570103193,18.12737909,1408.9,1408.6,0.03]
[1673570103405,7.42331637,1408.9,1408.6,0.03]
[1673570103667,7.42331637,1408.9,1408.6,0.333]
[1673570103865,0.32558637,1408.9,1408.6,2.833]
[1673570104187,0.23,1408.9,1408.6,2.833]
[1673570104770,0.09558637,1409.0,1408.7,4.596]
[1673570104984,31.25529,1409.2,1408.8,0.4596]
[1673570104985,23.72228637,1409.2,1408.8,0.4596]
[1673570105191,23.72228637,1409.2,1409.0,2.5]
[1673570105420,0.09558637,1409.2,1409.0,2.5]
[1673570105761,4.93858637,1409.3,1408.9,9.66368]
[1673570105991,4.843,1409.3,1408.9,12.029612]
[1673570106155,4.843,1409.3,1408.9,9.529612]
[1673570106761,5.20133272,1409.2,1408.8,0.066]
[1673570107080,5.20733272,1409.1,1408.6,0.096]
[1673570107288,2.5,1408.9,1408.6,0.03]
[1673570107572,10.20860327,1408.9,1408.6,0.03]
[1673570107711,10.30418964,1408.9,1408.6,0.03]
[1673570107917,7.80418964,1408.9,1408.6,0.03]
[1673570108351,16.49815964,1408.9,1408.6,0.03]
[1673570108564,20.10449236,1408.9,1408.6,0.03]
[1673570108793,3.84144924,1408.8,1408.6,0.03]
[1673570109013,2.5,1408.7,1408.6,0.03]
[1673570109336,2.73,1408.7,1408.6,0.03]
[1673570109649,21.90481272,1408.7,1408.6,0.03]
[1673570109857,29.32913909,1408.7,1408.6,0.03]
[1673570110181,33.63628392,1408.7,1408.6,0.03]
[1673570110756,34.89045251,1408.7,1408.6,0.03]
[1673570110964,34.16878392,1408.7,1408.6,0.03]
[1673570112451,14.82556637,1408.7,1408.6,0.03]
[1673570112785,7.19432637,1408.7,1408.6,0.03]
[1673570113738,14.29306637,1408.7,1408.6,0.03]
[1673570113959,14.82556637,1408.7,1408.6,0.03]
[1673570114173,14.29306637,1408.7,1408.6,0.03]
[1673570114333,16.89555901,1408.7,1408.6,0.03]
[1673570114992,14.29306637,1408.7,1408.6,0.03]
[1673570115327,0.09558637,1408.7,1408.6,0.03]
[1673570115483,14.82418637,1408.9,1408.6,0.03]
[1673570115694,7.19368637,1408.9,1408.6,0.03]
[1673570115904,16.79141637,1408.9,1408.6,0.742974]
[1673570116155,27.49584909,1408.9,1408.6,0.03]
[1673570116586,2.5,1408.7,1408.2,2.78174962]
[1673570116807,21.29846,1408.6,1408.2,2.78174962]
[1673570117113,21.29846,1408.6,1408.1,0.016]
[1673570117114,2.5,1408.5,1408.1,0.016]
[1673570117301,2.5,1408.5,1408.0,21.3745812]
[1673570117474,11.98935464,1408.5,1408.0,23.93091587]
[1673570117688,12.08494101,1408.5,1408.0,23.93091587]
[1673570118161,2.5,1408.4,1408.1,3.0]
[1673570118376,9.58494101,1408.5,1408.1,2.9]
[1673570118593,9.58494101,1408.5,1408.1,7.98969159]
[1673570118901,9.58494101,1408.5,1408.1,12.59143159]
[1673570119062,7.19553637,1408.5,1408.1,19.69319159]
[1673570119475,17.90181909,1408.5,1408.1,2.85]
[1673570119754,21.39543637,1408.5,1408.0,0.066]
[1673570119962,21.39543637,1408.5,1407.9,7.1302655]
[1673570119963,3.83633272,1408.4,1407.9,0.0277655]
[1673570120113,2.5,1408.2,1407.9,0.0277655]
[1673570120323,9.55129,1408.2,1407.9,0.0277655]
[1673570120646,9.64687637,1408.2,1407.9,0.0277655]
[1673570120998,9.64387637,1408.2,1407.9,0.0277655]
[1673570121213,0.09558637,1408.2,1407.9,7.36789911]
[1673570121371,9.64645,1408.4,1407.9,28.67619911]
[1673570121583,9.74203637,1408.4,1407.9,28.67619911]
[1673570121826,9.69603637,1408.4,1408.2,0.00355]
[1673570122214,7.19603637,1408.4,1408.2,0.00355]
[1673570122465,9.69603637,1408.4,1408.2,0.00355]
[1673570123206,16.79651637,1408.4,1408.2,0.00355]
[1673570123579,0.09558637,1408.4,1408.2,0.00355]
[1673570123792,0.04558637,1408.5,1408.3,1.31199617]
[1673570124014,9.59976,1408.5,1408.3,1.31199617]
[1673570124259,9.64534637,1408.5,1408.3,1.31199617]
[1673570124647,9.64534637,1408.5,1408.3,0.00299617]
[1673570124852,9.64534637,1408.5,1408.2,0.00355]
[1673570124853,21.50306601,1408.5,1408.2,0.00355]
[1673570125245,7.10075,1408.3,1408.2,0.00355]
[1673570125403,7.14633637,1408.3,1408.2,0.00355]
[1673570126277,14.24708637,1408.3,1408.2,0.00355]
[1673570127792,21.34783637,1408.3,1408.2,0.00355]
[1673570128008,23.73262001,1408.3,1408.2,0.00355]
[1673570128466,23.68262001,1408.3,1408.2,0.00355]
[1673570129465,21.29783637,1408.3,1408.2,0.00355]
[1673570129783,0.04558637,1408.3,1408.2,0.00355]
[1673570129991,9.60075,1408.3,1408.2,0.00355]
[1673570130236,7.14633637,1408.3,1408.2,0.00355]
[1673570130455,0.04558637,1408.3,1408.2,1.31255]
[1673570130771,30.83483,1408.6,1408.2,20.85365772]
[1673570130772,23.77798637,1408.6,1408.2,20.85365772]
[1673570130937,0.04558637,1408.6,1408.2,21.01033572]
[1673570131144,14.24365637,1408.7,1408.3,2.10103357]
[1673570131607,2.5,1408.6,1408.3,2.10103357]
[1673570131993,9.59925,1408.6,1408.2,7.30506139]
[1673570132209,9.59483637,1408.6,1408.2,7.23906139]
[1673570132845,9.59483637,1408.6,1408.3,5.96309216]
[1673570133301,9.59483637,1408.6,1408.3,8.10601627]
[1673570133472,0.04558637,1408.6,1408.3,2.14292411]
[1673570133840,0.04558637,1408.7,1408.4,0.00299596]
[1673570133989,31.88708637,1408.8,1408.4,14.20296596]
[1673570134356,30.38404637,1408.8,1408.5,1.4202966]
[1673570136002,0.04558637,1409.1,1408.9,1.601]
[1673570136208,0.04558637,1409.2,1408.9,1.601]
[1673570136439,0.70978148,1409.3,1408.9,13.17491872]
[1673570136661,0.66419511,1409.3,1409.0,3.60633272]
[1673570136831,0.08199511,1409.3,1409.0,10.70325272]
[1673570137050,0.08199511,1409.3,1409.1,5.17132527]
[1673570137240,0.08199511,1409.3,1409.1,8.77765799]
[1673570137607,0.08199511,1409.3,1409.2,3.60633272]
[1673570137824,0.08199511,1409.3,1409.1,1.13632527]
[1673570138035,0.08199511,1409.3,1408.9,12.134526]
[1673570138249,0.08199511,1409.3,1409.0,6.60633272]
[1673570138465,0.08199511,1409.3,1409.0,16.20355272]
[1673570139043,0.08199511,1409.3,1409.0,23.30078272]
[1673570139296,0.08199511,1409.3,1409.1,2.33007827]
[1673570139512,0.08199511,1409.3,1409.1,11.92653827]
[1673570139820,0.08199511,1409.3,1409.1,9.42653827]
[1673570140245,0.08199511,1409.3,1409.2,5.20733272]
[1673570140477,0.08199511,1409.3,1409.2,12.30355272]
[1673570140792,0.08199511,1409.3,1409.2,22.28905382]
[1673570142320,0.08199511,1409.3,1409.2,33.98327382]
[1673570142739,0.08199511,1409.3,1409.2,35.08269224]
[1673570143215,0.08199511,1409.3,1409.2,34.88527382]
[1673570143402,0.08199511,1409.3,1409.2,36.48427382]
[1673570144631,0.08199511,1409.3,1409.2,37.54410133]
[1673570145153,0.08199511,1409.3,1409.2,36.48427382]
[1673570146373,0.08199511,1409.3,1409.2,37.54410133]
[1673570146732,0.0303275,1409.4,1409.3,3.8171944]
[1673570146943,0.0303275,1409.4,1409.3,32.12864548]
[1673570147181,0.0303275,1409.4,1409.3,37.62336548]
[1673570148004,0.0303275,1409.4,1409.3,32.21636548]
[1673570148227,0.0303275,1409.4,1409.3,0.0081944]
[1673570148413,0.0303275,1409.4,1409.3,7.1039144]
[1673570150110,1.3263275,1409.4,1409.3,0.0081944]
[1673570150880,3.8263275,1409.4,1409.3,0.0081944]
[1673570151037,3.8263275,1409.4,1409.1,10.0549144]
[1673570151247,3.8263275,1409.4,1409.1,2.9581944]
[1673570151709,3.8263275,1409.4,1409.1,10.0548744]
[1673570151885,1.3263275,1409.4,1409.1,10.0548744]
[1673570152094,3.13248289,1409.4,1409.1,7.09668]
[1673570152777,3.13248289,1409.4,1409.1,14.1934]
[1673570152939,1.8585275,1409.4,1409.1,14.1934]
[1673570153143,15.5167875,1409.4,1409.0,0.066]
[1673570153392,1.0,1409.2,1408.9,14.19489]
[1673570153611,8.09627,1409.2,1408.9,7.09742]
[1673570153773,1.04558637,1409.2,1408.9,7.09742]
[1673570153985,1.0,1409.2,1408.9,7.09742]
[1673570154457,1.0,1409.2,1408.9,14.19515]
[1673570155244,1.86735564,1409.2,1408.9,14.19515]
[1673570155574,8.96360564,1409.2,1408.8,21.3597]
[1673570155818,25.70169201,1409.2,1408.7,14.26318]
[1673570155981,12.1669792,1409.1,1408.7,9.59857]
[1673570156191,19.30937557,1409.1,1408.7,7.09852]
[1673570156418,26.40618557,1409.1,1408.6,25.42293751]
[1673570156626,5.14061856,1409.0,1408.7,3.0]
[1673570156838,9.78356493,1409.0,1408.7,3.0]
[1673570157033,9.78356493,1409.0,1408.7,10.0987]
[1673570157274,2.68620493,1409.0,1408.7,10.0987]
[1673570157453,14.77169637,1409.1,1408.7,13.70503272]
[1673570157663,0.57788637,1409.1,1408.8,2.5]
[1673570157917,11.63266564,1409.2,1408.8,7.09807]
[1673570157918,19.30703201,1409.2,1408.8,7.09807]
[1673570158130,2.5,1409.1,1408.7,20.86951272]
[1673570158336,2.5,1409.1,1408.7,24.11516869]
[1673570158713,2.5,1409.1,1408.7,31.21364869]
[1673570160288,12.21055201,1409.2,1408.7,31.21364869]
[1673570160503,12.21055201,1409.2,1408.8,2.5]
[1673570160708,12.21055201,1409.2,1408.9,7.09765]
[1673570161493,2.44524201,1409.2,1408.9,21.29311]
[1673570161707,2.39965564,1409.2,1408.9,21.29311]
[1673570161865,1.5323,1409.2,1408.9,21.29311]
[1673570162077,4.0323,1409.2,1408.9,21.29311]
[1673570162931,4.0323,1409.2,1408.8,14.26184]
[1673570162932,11.12852,1409.2,1408.8,14.26184]
[1673570163177,25.36654637,1409.2,1408.7,13.77090272]
[1673570163390,2.53665464,1409.1,1408.7,10.09857]
[1673570163547,14.19355,1409.1,1408.7,17.19731]
[1673570163863,14.23913637,1409.1,1408.7,24.29605]
[1673570164516,7.14230637,1409.1,1408.7,24.29605]
[1673570164723,7.14230637,1409.1,1408.7,27.90238272]
[1673570164955,0.04558637,1409.1,1408.7,27.90238272]
[1673570165285,15.23834637,1409.2,1408.7,31.83399569]
[1673570165521,15.23834637,1409.2,1408.7,32.8938232]
[1673570165803,1.04558637,1409.2,1408.8,2.5]
[1673570166022,1.0,1409.2,1408.9,14.19533]
[1673570166384,1.0,1409.2,1408.9,21.29306]
[1673570166653,1.0,1409.2,1408.9,27.99509472]
[1673570169260,1.0,1409.2,1408.9,29.05492223]
[1673570169474,1.0,1409.2,1409.0,2.5]
[1673570169648,1.0,1409.2,1409.1,14.19344]
[1673570169856,1.0,1409.2,1409.1,21.29016]
[1673570173265,0.99675299,1409.2,1409.1,21.29016]
[1673570173646,0.99675299,1409.2,1409.1,22.34998751]
[1673570173843,0.99675299,1409.2,1409.1,28.60672593]
[1673570174320,0.99675299,1409.2,1409.1,27.54689842]
[1673570174516,0.99675299,1409.2,1409.1,28.60672593]
[1673570174795,0.99675299,1409.2,1409.1,27.54689842]
[1673570175264,0.99675299,1409.2,1409.0,16.91115166]
[1673570175477,0.99675299,1409.2,1409.0,20.44848969]
[1673570176732,0.99675299,1409.2,1409.1,1.05982751]
[1673570178621,0.99675299,1409.2,1409.0,27.61132969]
[1673570178841,0.99675299,1409.2,1409.1,1.05982751]
[1673570179469,0.99675299,1409.2,1409.1,8.15654751]
[1673570179840,0.99675299,1409.2,1409.1,15.25326751]
[1673570180043,0.99675299,1409.2,1409.1,22.34998751]
[1673570180302,0.99675299,1409.2,1409.1,18.9350856]
[1673570180625,0.99675299,1409.2,1409.1,20.52315506]
[1673570180793,0.99675299,1409.2,1409.1,31.22620778]
[1673570181008,0.99675299,1409.2,1409.1,39.85115555]
[1673570181356,0.99675299,1409.2,1409.1,45.48969458]
[1673570181576,0.8970777,1409.2,1409.1,45.87886336]
[1673570182104,0.8970777,1409.2,1409.1,43.37886336]
[1673570183325,0.8970777,1409.2,1409.1,45.50008226]
[1673570183512,0.8970777,1409.2,1409.1,43.37886336]
[1673570185209,0.8970777,1409.2,1409.1,43.32886336]
[1673570185631,0.8970777,1409.2,1409.1,43.52628178]
[1673570186240,0.8970777,1409.2,1409.1,46.02628178]
[1673570186665,0.8970777,1409.2,1409.1,48.14769069]
[1673570187138,0.8970777,1409.2,1409.1,46.02628178]
[1673570188523,0.8970777,1409.2,1409.1,43.52628178]
[1673570190049,0.8970777,1409.2,1409.1,40.32428178]
[1673570190785,0.8970777,1409.2,1409.1,33.22756178]
[1673570191134,0.8970777,1409.2,1409.1,24.46412424]
[1673570191703,0.8970777,1409.2,1409.1,19.79652718]
[1673570191975,0.8970777,1409.2,1409.1,18.73525781]
[1673570192127,0.8970777,1409.2,1409.1,27.95451152]
[1673570192338,0.8970777,1409.2,1409.1,37.5210289]
[1673570192584,0.8970777,1409.2,1409.1,40.66144688]
[1673570193910,0.8970777,1409.2,1409.1,29.96902643]
[1673570194122,0.8970777,1409.2,1409.1,15.73521951]
[1673570194443,0.8970777,1409.2,1409.0,2.71901247]
[1673570194653,0.8970777,1409.2,1409.1,1.06123296]
[1673570195502,0.8970777,1409.2,1409.0,2.71901247]
[1673570195837,1.99958147,1409.2,1409.0,2.65301247]
[1673570196590,1.99958147,1409.2,1409.1,1.06123296]
[1673570196801,0.8970777,1409.2,1409.1,8.15795296]
[1673570197754,0.8970777,1409.2,1409.1,4.14795296]
[1673570198065,0.8970777,1409.2,1409.1,11.24467296]
[1673570198220,0.8970777,1409.2,1409.0,17.97451322]
[1673570198430,0.8970777,1409.2,1409.0,17.90851322]
[1673570199093,0.8970777,1409.2,1409.0,15.78597951]
[1673570199424,1.29000547,1409.2,1409.0,15.78597951]
[1673570199586,7.09672,1409.1,1409.0,1.59177951]
[1673570199799,7.14230637,1409.1,1408.9,3.78031322]
[1673570200007,8.81588355,1409.1,1408.9,3.71431322]
[1673570200266,2.5,1409.0,1408.9,3.71498035]
[1673570200435,2.5,1409.0,1408.9,4.59244664]
[1673570200986,11.31588355,1409.1,1408.9,4.59244664]
[1673570201320,8.81588355,1409.1,1408.9,4.59244664]
[1673570201475,1.71916355,1409.1,1408.9,6.71498035]
[1673570201686,1.67357718,1409.1,1408.9,11.69015664]
[1673570202109,1.29000547,1409.2,1408.9,18.78788664]
[1673570202320,1.29000547,1409.2,1409.0,1.59244664]
[1673570202682,1.29000547,1409.2,1409.0,15.78658664]
[1673570202895,0.8970777,1409.2,1409.0,15.78658664]
[1673570203419,0.8970777,1409.2,1409.0,8.68937664]
[1673570203998,0.8970777,1409.2,1409.0,15.78660664]
[1673570204503,0.8970777,1409.2,1409.0,22.88383664]
[1673570205310,0.8970777,1409.2,1409.0,26.49016936]
[1673570205781,0.8970777,1409.2,1409.0,30.63163157]
[1673570205992,0.8970777,1409.2,1409.0,32.75416528]
[1673570206679,0.8970777,1409.2,1409.0,26.49016936]
[1673570206993,0.8970777,1409.2,1409.0,8.68937664]
[1673570207786,0.8970777,1409.2,1409.0,16.84836004]
[1673570208550,0.8970777,1409.2,1409.0,2.65420004]
[1673570209883,0.8970777,1409.2,1409.0,1.0617534]
[1673570210210,1.202,1409.1,1409.0,1.0617534]
[1673570210418,1.202,1409.1,1408.9,2.65420004]
[1673570210419,8.2989,1409.1,1408.9,2.65420004]
[1673570210630,1.207,1409.0,1408.9,1.0617534]
[1673570210880,3.707,1409.0,1408.9,1.0617534]
[1673570211248,1.207,1409.0,1408.9,1.0617534]
[1673570211458,1.207,1409.0,1408.9,2.65420004]
[1673570211718,1.207,1409.0,1408.9,1.0617534]
[1673570213297,10.84436637,1409.1,1408.9,1.0617534]
[1673570213483,4.55254662,1409.1,1408.9,1.0617534]
[1673570213664,4.50696025,1409.1,1408.9,1.0617534]
[1673570213876,1.202,1409.1,1408.9,1.0617534]
[1673570214102,3.702,1409.1,1408.9,1.0617534]
[1673570214758,3.702,1409.1,1408.9,15.2572034]
[1673570214971,1.202,1409.1,1408.9,15.2572034]
[1673570216556,9.92222248,1409.2,1408.9,15.2572034]
[1673570216985,2.5,1409.1,1408.9,7.09772]
[1673570217296,3.74222225,1409.1,1408.9,7.09772]
[1673570217508,19.14073225,1409.1,1408.8,1.1277534]
[1673570217671,19.18631862,1409.1,1408.8,11.1599634]
[1673570217876,1.202,1409.0,1408.8,4.0617534]
[1673570218125,1.207,1408.9,1408.8,3.0]
[1673570218294,1.207,1408.9,1408.8,4.0617534]
[1673570218714,1.207,1408.9,1408.8,3.0]
[1673570218969,3.16621823,1409.0,1408.8,3.0]
[1673570219187,3.12063186,1409.0,1408.8,4.0617534]
[1673570220659,38.72861862,1409.1,1408.8,4.0617534]
[1673570220874,31.63182862,1409.1,1408.8,11.1599534]
[1673570221179,22.08992588,1409.1,1408.8,19.85063004]
[1673570221388,22.08992588,1409.1,1408.9,1.0617534]
[1673570221547,22.08992588,1409.1,1408.9,8.1594734]
[1673570221754,22.08992588,1409.1,1408.9,7.09772]